[Event "Late Titled Tuesday Blitz February 8 2022"]
[White "Zhurbinsky, David"]
[Black "Ardila, Oscar Humberto"]
[WhiteFideId "2072904"]
[BlackFideId "4404742"]
[WhiteElo "2588"]
[BlackElo "1898"]
[Result "0-1"]
[Round "01"]
[TimeControl "180+1"]
[Date "2022.02.09"]
[WhiteClock "0:00:05"]
[BlackClock "0:00:17"]

1. e4 {[%clk 0:02:58]}  e5 {[%clk 0:02:59]} 2. Nf3 {[%clk 0:02:58]}  Nf6 {[%clk 0:02:58]} 3. Nxe5 {[%clk 0:02:55]}  d6 {[%clk 0:02:58]} 4. Nf3 {[%clk 0:02:53]}  Nxe4 {[%clk 0:02:58]} 5. d4 {[%clk 0:02:54]}  Be7 {[%clk 0:02:58]} 6. Bd3 {[%clk 0:02:55]}  d5 {[%clk 0:02:58]} 7. O-O {[%clk 0:02:55]}  Nc6 {[%clk 0:02:58]} 8. c4 {[%clk 0:02:55]}  Nb4 {[%clk 0:02:58]} 9. Nc3 {[%clk 0:02:45]}  Nxd3 {[%clk 0:02:56]} 10. Qxd3 {[%clk 0:02:46]}  Nxc3 {[%clk 0:02:57]} 11. bxc3 {[%clk 0:02:44]}  O-O {[%clk 0:02:54]} 12. Re1 {[%clk 0:02:40]}  Bf6 {[%clk 0:02:53]} 13. Ba3 {[%clk 0:02:37]}  dxc4 {[%clk 0:02:40]} 14. Qe2 {[%clk 0:02:17]}  Be6 {[%clk 0:02:26]} 15. Bxf8 {[%clk 0:02:15]}  Qxf8 {[%clk 0:02:27]} 16. Ne5 {[%clk 0:02:09]}  Qa3 {[%clk 0:02:24]} 17. Rac1 {[%clk 0:01:58]}  c5 {[%clk 0:02:20]} 18. Nxc4 {[%clk 0:01:54]}  Qa4 {[%clk 0:02:12]} 19. d5 {[%clk 0:01:52]}  Bxd5 {[%clk 0:02:08]} 20. Nd6 {[%clk 0:01:47]}  h6 {[%clk 0:01:48]} 21. Ne8 {[%clk 0:01:32]}  Bg5 {[%clk 0:01:43]} 22. Qe5 {[%clk 0:01:32]}  Rxe8 {[%clk 0:01:29]} 23. Qxe8+ {[%clk 0:01:33]}  Qxe8 {[%clk 0:01:27]} 24. Rxe8+ {[%clk 0:01:34]}  Kh7 {[%clk 0:01:27]} 25. Rb1 {[%clk 0:01:26]}  b6 {[%clk 0:01:19]} 26. a3 {[%clk 0:01:16]}  Kg6 {[%clk 0:01:13]} 27. f3 {[%clk 0:01:11]}  Ba2 {[%clk 0:01:06]} 28. Rd1 {[%clk 0:01:06]}  Be6 {[%clk 0:01:02]} 29. Kf2 {[%clk 0:01:00]}  Bf6 {[%clk 0:01:02]} 30. Rd3 {[%clk 0:00:52]}  Kf5 {[%clk 0:00:58]} 31. g4+ {[%clk 0:00:49]}  Kf4 {[%clk 0:00:57]} 32. Kg2 {[%clk 0:00:24]}  h5 {[%clk 0:00:51]} 33. h3 {[%clk 0:00:23]}  hxg4 {[%clk 0:00:50]} 34. hxg4 {[%clk 0:00:24]}  c4 {[%clk 0:00:47]} 35. Rd6 {[%clk 0:00:17]}  Bxc3 {[%clk 0:00:46]} 36. Rf8 {[%clk 0:00:16]}  Ke5 {[%clk 0:00:44]} 37. Rdd8 {[%clk 0:00:16]}  Bb2 {[%clk 0:00:44]} 38. Rd2 {[%clk 0:00:13]}  c3 {[%clk 0:00:43]} 39. Re2+ {[%clk 0:00:14]}  Kd4 {[%clk 0:00:42]} 40. Rd8+ {[%clk 0:00:14]}  Kc4 {[%clk 0:00:43]} 41. f4 {[%clk 0:00:12]}  Bd5+ {[%clk 0:00:40]} 42. Kf2 {[%clk 0:00:11]}  Bb7 {[%clk 0:00:32]} 43. Re7 {[%clk 0:00:11]}  Bh1 {[%clk 0:00:29]} 44. Rc7+ {[%clk 0:00:10]}  Kb3 {[%clk 0:00:29]} 45. Rxf7 {[%clk 0:00:07]}  c2 {[%clk 0:00:28]} 46. Rc8 {[%clk 0:00:07]}  Bd4+ {[%clk 0:00:27]} 47. Kg3 {[%clk 0:00:07]}  Bc5 {[%clk 0:00:28]} 48. Re7 {[%clk 0:00:01]}  c1=Q {[%clk 0:00:26]} 49. Rxg7 {[%clk 0:00:01]}  Qg1+ {[%clk 0:00:23]} 50. Kh4 {[%clk 0:00:02]}  Qh2+ {[%clk 0:00:19]} 51. Kg5 {[%clk 0:00:02]}  Bf3 {[%clk 0:00:19]} 52. Kf6 {[%clk 0:00:01]}  Qxf4+ {[%clk 0:00:19]} 53. Kg6 {[%clk 0:00:01]}  Qxg4+ {[%clk 0:00:18]} 54. Kh7 {[%clk 0:00:02]}  Qxc8 {[%clk 0:00:18]} 55. a4 {[%clk 0:00:03]}  Qh3+ {[%clk 0:00:18]} 56. Kg8 {[%clk 0:00:03]}  Bd5+ {[%clk 0:00:18]} 57. Rf7 {[%clk 0:00:04]}  Qf5 {[%clk 0:00:17]} 58. a5 {[%clk 0:00:04]}  Qxf7+ {[%clk 0:00:17]} 59. Kh8 {[%clk 0:00:05]}  Bd4# {[%clk 0:00:17]} 0-1


[Site "https://www.chess.com"]

[Event "Late Titled Tuesday Blitz February 8 2022"]
[White "Zivkovic, Nemanja"]
[Black "Osiecki, Stanislaw"]
[WhiteFideId "942154"]
[BlackFideId "1102990"]
[WhiteElo "2388"]
[BlackElo "2127"]
[Result "1-0"]
[Round "01"]
[TimeControl "180+1"]
[Date "2022.02.09"]
[WhiteClock "0:00:23"]
[BlackClock "0:00:14"]

1. e4 {[%clk 0:02:56]}  e6 {[%clk 0:02:59]} 2. d4 {[%clk 0:02:54]}  d5 {[%clk 0:02:59]} 3. Nd2 {[%clk 0:02:54]}  c5 {[%clk 0:02:59]} 4. Ngf3 {[%clk 0:02:53]}  cxd4 {[%clk 0:02:58]} 5. exd5 {[%clk 0:02:52]}  exd5 {[%clk 0:02:58]} 6. Nxd4 {[%clk 0:02:47]}  Nc6 {[%clk 0:02:59]} 7. N2f3 {[%clk 0:02:47]}  Bd6 {[%clk 0:02:58]} 8. g3 {[%clk 0:02:42]}  Bg4 {[%clk 0:02:55]} 9. Bg2 {[%clk 0:02:41]}  Qe7+ {[%clk 0:02:54]} 10. Be3 {[%clk 0:02:40]}  Nf6 {[%clk 0:02:49]} 11. O-O {[%clk 0:02:40]}  O-O {[%clk 0:02:46]} 12. Re1 {[%clk 0:02:24]}  Ne4 {[%clk 0:02:45]} 13. h3 {[%clk 0:02:20]}  Bxf3 {[%clk 0:02:45]} 14. Nxf3 {[%clk 0:02:15]}  Rad8 {[%clk 0:02:35]} 15. c3 {[%clk 0:02:15]}  Qf6 {[%clk 0:02:30]} 16. Qxd5 {[%clk 0:02:04]}  Nxg3 {[%clk 0:02:23]} 17. fxg3 {[%clk 0:01:59]}  Bxg3 {[%clk 0:02:22]} 18. Qg5 {[%clk 0:01:58]}  Bxe1 {[%clk 0:02:17]} 19. Qxf6 {[%clk 0:01:56]}  gxf6 {[%clk 0:02:17]} 20. Rxe1 {[%clk 0:01:56]}  Ne5 {[%clk 0:02:11]} 21. Bxa7 {[%clk 0:01:52]}  Ra8 {[%clk 0:01:58]} 22. Bd4 {[%clk 0:01:42]}  Rxa2 {[%clk 0:01:50]} 23. Nxe5 {[%clk 0:01:41]}  fxe5 {[%clk 0:01:50]} 24. Rxe5 {[%clk 0:01:40]}  h6 {[%clk 0:01:44]} 25. b4 {[%clk 0:01:29]}  Ra1+ {[%clk 0:01:35]} 26. Kh2 {[%clk 0:01:29]}  Ra2 {[%clk 0:01:34]} 27. Kg3 {[%clk 0:01:27]}  b5 {[%clk 0:01:20]} 28. Rxb5 {[%clk 0:01:23]}  Ra3 {[%clk 0:01:13]} 29. Bd5 {[%clk 0:01:22]}  Kh7 {[%clk 0:01:12]} 30. Rb7 {[%clk 0:01:21]}  Rg8+ {[%clk 0:01:07]} 31. Kf4 {[%clk 0:01:20]}  Rf8 {[%clk 0:01:03]} 32. Be4+ {[%clk 0:01:17]}  Kg8 {[%clk 0:01:02]} 33. b5 {[%clk 0:01:17]}  Ra1 {[%clk 0:00:57]} 34. b6 {[%clk 0:01:17]}  Rf1+ {[%clk 0:00:57]} 35. Ke3 {[%clk 0:01:17]}  Re8 {[%clk 0:00:56]} 36. Kd3 {[%clk 0:01:04]}  Rd1+ {[%clk 0:00:53]} 37. Kc2 {[%clk 0:01:04]}  Rxd4 {[%clk 0:00:49]} 38. cxd4 {[%clk 0:01:05]}  Rxe4 {[%clk 0:00:49]} 39. Rb8+ {[%clk 0:00:52]}  Kg7 {[%clk 0:00:48]} 40. Rd8 {[%clk 0:00:50]}  Re7 {[%clk 0:00:45]} 41. Kd3 {[%clk 0:00:48]}  f5 {[%clk 0:00:43]} 42. Rc8 {[%clk 0:00:34]}  Kf6 {[%clk 0:00:39]} 43. Rc7 {[%clk 0:00:34]}  Re8 {[%clk 0:00:39]} 44. b7 {[%clk 0:00:34]}  Rb8 {[%clk 0:00:38]} 45. Kc4 {[%clk 0:00:35]}  f4 {[%clk 0:00:36]} 46. Kc5 {[%clk 0:00:35]}  f3 {[%clk 0:00:37]} 47. Kb6 {[%clk 0:00:34]}  f2 {[%clk 0:00:36]} 48. Rc1 {[%clk 0:00:34]}  Kf5 {[%clk 0:00:27]} 49. Rf1 {[%clk 0:00:26]}  Kg5 {[%clk 0:00:22]} 50. Rxf2 {[%clk 0:00:22]}  Kh4 {[%clk 0:00:22]} 51. Rf3 {[%clk 0:00:21]}  h5 {[%clk 0:00:19]} 52. Kc7 {[%clk 0:00:20]}  Rg8 {[%clk 0:00:16]} 53. b8=Q {[%clk 0:00:20]}  Rg5 {[%clk 0:00:12]} 54. Rf4+ {[%clk 0:00:16]}  Kxh3 {[%clk 0:00:11]} 55. Qb3+ {[%clk 0:00:17]}  Rg3 {[%clk 0:00:11]} 56. Rf3 {[%clk 0:00:17]}  h4 {[%clk 0:00:10]} 57. Rxg3+ {[%clk 0:00:16]}  hxg3 {[%clk 0:00:10]} 58. d5 {[%clk 0:00:17]}  Kh2 {[%clk 0:00:10]} 59. d6 {[%clk 0:00:17]}  g2 {[%clk 0:00:10]} 60. Qc2 {[%clk 0:00:17]}  Kh1 {[%clk 0:00:10]} 61. Qxg2+ {[%clk 0:00:17]}  Kxg2 {[%clk 0:00:11]} 62. d7 {[%clk 0:00:18]}  Kh1 {[%clk 0:00:11]} 63. d8=Q {[%clk 0:00:19]}  Kg2 {[%clk 0:00:12]} 64. Qd3 {[%clk 0:00:19]}  Kh1 {[%clk 0:00:13]} 65. Kd6 {[%clk 0:00:20]}  Kg2 {[%clk 0:00:14]} 66. Ke5 {[%clk 0:00:21]}  Kh1 {[%clk 0:00:14]} 67. Kf4 {[%clk 0:00:22]}  Kg2 {[%clk 0:00:15]} 68. Qe3 {[%clk 0:00:22]}  Kh1 {[%clk 0:00:14]} 69. Qd2 {[%clk 0:00:23]}  Kg1 {[%clk 0:00:14]} 70. Kg3 {[%clk 0:00:23]} 1-0


[Site "https://www.chess.com"]

[Event "Late Titled Tuesday Blitz February 8 2022"]
[White "Atanasov, Anthony"]
[Black "Mikhalsky, Vladimir"]
[WhiteFideId "2623897"]
[BlackFideId "14144352"]
[WhiteElo "1928"]
[BlackElo "2248"]
[Result "0-1"]
[Round "02"]
[TimeControl "180+1"]
[Date "2022.02.09"]
[WhiteClock "0:00:30"]
[BlackClock "0:00:52"]

1. d4 {[%clk 0:03:00]}  Nf6 {[%clk 0:02:55]} 2. Bf4 {[%clk 0:03:01]}  g6 {[%clk 0:02:54]} 3. e3 {[%clk 0:03:02]}  Bg7 {[%clk 0:02:54]} 4. Nf3 {[%clk 0:03:03]}  O-O {[%clk 0:02:54]} 5. Be2 {[%clk 0:03:03]}  c5 {[%clk 0:02:54]} 6. O-O {[%clk 0:03:04]}  b6 {[%clk 0:02:54]} 7. Nbd2 {[%clk 0:03:04]}  Bb7 {[%clk 0:02:54]} 8. c3 {[%clk 0:03:05]}  d6 {[%clk 0:02:53]} 9. a4 {[%clk 0:03:05]}  a6 {[%clk 0:02:52]} 10. Re1 {[%clk 0:03:06]}  Nc6 {[%clk 0:02:51]} 11. Bd3 {[%clk 0:03:05]}  e5 {[%clk 0:02:49]} 12. dxe5 {[%clk 0:03:06]}  dxe5 {[%clk 0:02:49]} 13. Bxe5 {[%clk 0:03:07]}  Qxd3 {[%clk 0:02:47]} 14. Bxf6 {[%clk 0:03:00]}  Bxf6 {[%clk 0:02:46]} 15. Qb3 {[%clk 0:03:01]}  b5 {[%clk 0:02:33]} 16. e4 {[%clk 0:02:51]}  Na5 {[%clk 0:02:29]} 17. Qa3 {[%clk 0:02:48]}  Nc4 {[%clk 0:02:22]} 18. Qxc5 {[%clk 0:02:34]}  Nxd2 {[%clk 0:02:21]} 19. Nxd2 {[%clk 0:02:35]}  Qxd2 {[%clk 0:02:20]} 20. Qb6 {[%clk 0:02:35]}  Bxe4 {[%clk 0:01:51]} 21. Qxf6 {[%clk 0:02:01]}  Qxb2 {[%clk 0:01:49]} 22. h4 {[%clk 0:01:48]}  h5 {[%clk 0:01:39]} 23. Kh2 {[%clk 0:01:36]}  Bf5 {[%clk 0:01:34]} 24. axb5 {[%clk 0:01:32]}  axb5 {[%clk 0:01:33]} 25. Rxa8 {[%clk 0:01:26]}  Rxa8 {[%clk 0:01:32]} 26. Qc6 {[%clk 0:01:25]}  Rc8 {[%clk 0:01:28]} 27. Re8+ {[%clk 0:01:23]}  Rxe8 {[%clk 0:01:28]} 28. Qxe8+ {[%clk 0:01:24]}  Kg7 {[%clk 0:01:27]} 29. Qe5+ {[%clk 0:01:23]}  Kh7 {[%clk 0:01:27]} 30. Qc7 {[%clk 0:01:09]}  Be6 {[%clk 0:01:27]} 31. Qc5 {[%clk 0:01:04]}  Bc4 {[%clk 0:01:22]} 32. Qd4 {[%clk 0:00:58]}  Qe2 {[%clk 0:01:22]} 33. f4 {[%clk 0:00:52]}  Qg4 {[%clk 0:01:19]} 34. Qf6 {[%clk 0:00:49]}  Bd5 {[%clk 0:01:11]} 35. Qg5 {[%clk 0:00:46]}  Qxg5 {[%clk 0:01:01]} 36. fxg5 {[%clk 0:00:47]}  Kg8 {[%clk 0:00:58]} 37. Kg1 {[%clk 0:00:36]}  f6 {[%clk 0:00:57]} 38. gxf6 {[%clk 0:00:36]}  Kf7 {[%clk 0:00:57]} 39. Kf2 {[%clk 0:00:34]}  Kxf6 {[%clk 0:00:57]} 40. g3 {[%clk 0:00:34]}  Ke5 {[%clk 0:00:56]} 41. Ke3 {[%clk 0:00:34]}  Be4 {[%clk 0:00:57]} 42. Kd2 {[%clk 0:00:33]}  Kf5 {[%clk 0:00:55]} 43. Ke3 {[%clk 0:00:33]}  Bc6 {[%clk 0:00:52]} 44. Kd4 {[%clk 0:00:31]}  Kg4 {[%clk 0:00:53]} 45. Kc5 {[%clk 0:00:30]}  Be8 {[%clk 0:00:52]} 0-1


[Site "https://www.chess.com"]

[Event "Late Titled Tuesday Blitz February 8 2022"]
[White "Baker, Chris W"]
[Black "Chigaev, Maksim"]
[WhiteFideId "401676"]
[BlackFideId "4108116"]
[WhiteElo "2130"]
[BlackElo "2502"]
[Result "0-1"]
[Round "02"]
[TimeControl "180+1"]
[Date "2022.02.09"]
[WhiteClock "0:01:18"]
[BlackClock "0:01:43"]

1. e4 {[%clk 0:03:00]}  c5 {[%clk 0:02:59]} 2. b4 {[%clk 0:03:00]}  cxb4 {[%clk 0:02:59]} 3. a3 {[%clk 0:03:00]}  d5 {[%clk 0:02:57]} 4. exd5 {[%clk 0:02:59]}  Qxd5 {[%clk 0:02:57]} 5. Nf3 {[%clk 0:02:58]}  e6 {[%clk 0:02:58]} 6. Be2 {[%clk 0:02:53]}  Nf6 {[%clk 0:02:58]} 7. O-O {[%clk 0:02:53]}  Nc6 {[%clk 0:02:58]} 8. axb4 {[%clk 0:02:50]}  Bxb4 {[%clk 0:02:59]} 9. c3 {[%clk 0:02:49]}  Be7 {[%clk 0:02:59]} 10. d4 {[%clk 0:02:47]}  O-O {[%clk 0:02:59]} 11. Nbd2 {[%clk 0:02:46]}  b6 {[%clk 0:02:54]} 12. Re1 {[%clk 0:02:27]}  Bb7 {[%clk 0:02:54]} 13. Bc4 {[%clk 0:02:23]}  Qd8 {[%clk 0:02:53]} 14. Ba3 {[%clk 0:02:17]}  Bxa3 {[%clk 0:02:50]} 15. Rxa3 {[%clk 0:02:16]}  Rc8 {[%clk 0:02:51]} 16. Bd3 {[%clk 0:02:15]}  Na5 {[%clk 0:02:27]} 17. Ne5 {[%clk 0:02:03]}  Qd6 {[%clk 0:02:25]} 18. Qa1 {[%clk 0:01:57]}  Rfd8 {[%clk 0:02:14]} 19. Bf1 {[%clk 0:01:53]}  h6 {[%clk 0:02:13]} 20. Ndc4 {[%clk 0:01:51]}  Nxc4 {[%clk 0:02:05]} 21. Nxc4 {[%clk 0:01:51]}  Rxc4 {[%clk 0:01:53]} 22. Bxc4 {[%clk 0:01:50]}  Ng4 {[%clk 0:01:54]} 23. Re5 {[%clk 0:01:33]}  Nxe5 {[%clk 0:01:50]} 24. dxe5 {[%clk 0:01:33]}  Qd1+ {[%clk 0:01:43]} 25. Qxd1 {[%clk 0:01:31]}  Rxd1+ {[%clk 0:01:44]} 26. Bf1 {[%clk 0:01:30]}  Bd5 {[%clk 0:01:44]} 27. Ra4 {[%clk 0:01:18]}  b5 {[%clk 0:01:43]} 0-1


[Site "https://www.chess.com"]

[Event "Late Titled Tuesday Blitz February 8 2022"]
[White "Beulen, Marcel"]
[Black "Beerdsen, Thomas"]
[WhiteFideId "1001450"]
[BlackFideId "1030108"]
[WhiteElo "2358"]
[BlackElo "2585"]
[Result "0-1"]
[Round "02"]
[TimeControl "180+1"]
[Date "2022.02.09"]
[WhiteClock "0:02:06"]
[BlackClock "0:02:24"]

1. e4 {[%clk 0:03:00]}  e5 {[%clk 0:02:59]} 2. Nf3 {[%clk 0:03:00]}  Nc6 {[%clk 0:02:59]} 3. Bc4 {[%clk 0:03:00]}  Nf6 {[%clk 0:02:59]} 4. d3 {[%clk 0:03:00]}  h6 {[%clk 0:02:59]} 5. c3 {[%clk 0:02:59]}  d6 {[%clk 0:02:59]} 6. Bb3 {[%clk 0:02:59]}  g5 {[%clk 0:02:58]} 7. Nbd2 {[%clk 0:02:59]}  Qe7 {[%clk 0:02:56]} 8. Qe2 {[%clk 0:02:56]}  Be6 {[%clk 0:02:56]} 9. Bxe6 {[%clk 0:02:52]}  Qxe6 {[%clk 0:02:57]} 10. Nc4 {[%clk 0:02:52]}  O-O-O {[%clk 0:02:57]} 11. Bd2 {[%clk 0:02:44]}  g4 {[%clk 0:02:52]} 12. Nh4 {[%clk 0:02:41]}  d5 {[%clk 0:02:53]} 13. exd5 {[%clk 0:02:41]}  Nxd5 {[%clk 0:02:54]} 14. O-O-O {[%clk 0:02:35]}  Be7 {[%clk 0:02:51]} 15. g3 {[%clk 0:02:30]}  Bxh4 {[%clk 0:02:51]} 16. gxh4 {[%clk 0:02:31]}  f5 {[%clk 0:02:52]} 17. h3 {[%clk 0:02:30]}  h5 {[%clk 0:02:48]} 18. hxg4 {[%clk 0:02:30]}  hxg4 {[%clk 0:02:49]} 19. f3 {[%clk 0:02:23]}  Rdg8 {[%clk 0:02:41]} 20. fxg4 {[%clk 0:02:21]}  Rxg4 {[%clk 0:02:41]} 21. h5 {[%clk 0:02:19]}  e4 {[%clk 0:02:23]} 22. dxe4 {[%clk 0:02:07]}  Rxe4 {[%clk 0:02:24]} 23. Qf3 {[%clk 0:02:06]}  Rxc4 {[%clk 0:02:24]} 0-1


[Site "https://www.chess.com"]

[Event "Late Titled Tuesday Blitz February 8 2022"]
[White "Bilan, Danila"]
[Black "Santos, Rafael Ventura Dos"]
[WhiteFideId "24161918"]
[BlackFideId "2122227"]
[WhiteElo "2164"]
[BlackElo "2191"]
[Result "1-0"]
[Round "02"]
[TimeControl "180+1"]
[Date "2022.02.09"]
[WhiteClock "0:00:15"]
[BlackClock "0:00:09"]

1. d4 {[%clk 0:02:59]}  Nf6 {[%clk 0:03:00]} 2. Nf3 {[%clk 0:02:59]}  d6 {[%clk 0:03:00]} 3. g3 {[%clk 0:02:56]}  g6 {[%clk 0:03:00]} 4. Bg2 {[%clk 0:02:56]}  Bg7 {[%clk 0:03:01]} 5. O-O {[%clk 0:02:57]}  O-O {[%clk 0:03:01]} 6. c4 {[%clk 0:02:58]}  c6 {[%clk 0:02:58]} 7. Nc3 {[%clk 0:02:57]}  Qc7 {[%clk 0:02:58]} 8. Qc2 {[%clk 0:02:57]}  Nbd7 {[%clk 0:02:59]} 9. Rd1 {[%clk 0:02:56]}  a6 {[%clk 0:02:57]} 10. e4 {[%clk 0:02:53]}  h6 {[%clk 0:02:43]} 11. h3 {[%clk 0:02:43]}  e5 {[%clk 0:02:39]} 12. dxe5 {[%clk 0:02:40]}  dxe5 {[%clk 0:02:35]} 13. Be3 {[%clk 0:02:39]}  Re8 {[%clk 0:02:32]} 14. c5 {[%clk 0:02:37]}  Nf8 {[%clk 0:02:27]} 15. Nd2 {[%clk 0:02:23]}  Be6 {[%clk 0:02:26]} 16. Na4 {[%clk 0:02:22]}  Rad8 {[%clk 0:02:23]} 17. Nc4 {[%clk 0:02:15]}  Bxc4 {[%clk 0:02:23]} 18. Qxc4 {[%clk 0:02:16]}  Ne6 {[%clk 0:02:22]} 19. b4 {[%clk 0:02:10]}  Nh5 {[%clk 0:02:20]} 20. Nb6 {[%clk 0:01:50]}  Rxd1+ {[%clk 0:01:59]} 21. Rxd1 {[%clk 0:01:50]}  Rd8 {[%clk 0:02:00]} 22. Rxd8+ {[%clk 0:01:36]}  Qxd8 {[%clk 0:01:57]} 23. Bf3 {[%clk 0:01:36]}  Nf6 {[%clk 0:01:20]} 24. Qc1 {[%clk 0:01:22]}  Ne8 {[%clk 0:01:20]} 25. Nc4 {[%clk 0:01:10]}  Kh7 {[%clk 0:01:16]} 26. h4 {[%clk 0:01:02]}  h5 {[%clk 0:01:15]} 27. Bg2 {[%clk 0:00:51]}  Nd4 {[%clk 0:01:07]} 28. Kh2 {[%clk 0:00:51]}  Qe7 {[%clk 0:00:53]} 29. Qd1 {[%clk 0:00:48]}  Qe6 {[%clk 0:00:52]} 30. Qd3 {[%clk 0:00:41]}  f6 {[%clk 0:00:40]} 31. Bxd4 {[%clk 0:00:34]}  Qd7 {[%clk 0:00:35]} 32. Bh3 {[%clk 0:00:31]}  Qxd4 {[%clk 0:00:35]} 33. Qxd4 {[%clk 0:00:31]}  exd4 {[%clk 0:00:35]} 34. Bc8 {[%clk 0:00:31]}  f5 {[%clk 0:00:30]} 35. exf5 {[%clk 0:00:30]}  gxf5 {[%clk 0:00:30]} 36. Bxf5+ {[%clk 0:00:28]}  Kg8 {[%clk 0:00:29]} 37. Bc8 {[%clk 0:00:29]}  d3 {[%clk 0:00:28]} 38. Bxb7 {[%clk 0:00:27]}  Bc3 {[%clk 0:00:28]} 39. Bxc6 {[%clk 0:00:25]}  Nc7 {[%clk 0:00:25]} 40. a3 {[%clk 0:00:22]}  d2 {[%clk 0:00:25]} 41. Bf3 {[%clk 0:00:19]}  Nb5 {[%clk 0:00:26]} 42. Kg2 {[%clk 0:00:18]}  Nd4 {[%clk 0:00:22]} 43. Bxh5 {[%clk 0:00:18]}  Kf8 {[%clk 0:00:19]} 44. Bd1 {[%clk 0:00:15]}  Ke7 {[%clk 0:00:18]} 45. h5 {[%clk 0:00:15]}  Ke6 {[%clk 0:00:19]} 46. h6 {[%clk 0:00:15]}  Nc6 {[%clk 0:00:18]} 47. h7 {[%clk 0:00:15]}  Kd5 {[%clk 0:00:18]} 48. Nxd2 {[%clk 0:00:16]}  a5 {[%clk 0:00:09]} 49. Bf3+ {[%clk 0:00:15]} 1-0


[Site "https://www.chess.com"]

[Event "Late Titled Tuesday Blitz February 8 2022"]
[White "Buscar, Michael"]
[Black "Grigorov, Grigor"]
[WhiteFideId "2603616"]
[BlackFideId "2907313"]
[WhiteElo "2010"]
[BlackElo "2510"]
[Result "0-1"]
[Round "02"]
[TimeControl "180+1"]
[Date "2022.02.09"]
[WhiteClock "0:02:17"]
[BlackClock "0:02:30"]

1. c4 {[%clk 0:02:46]}  e5 {[%clk 0:02:59]} 2. Nf3 {[%clk 0:02:44]}  e4 {[%clk 0:02:55]} 3. Nd4 {[%clk 0:02:43]}  Nc6 {[%clk 0:02:54]} 4. Nc2 {[%clk 0:02:42]}  Nf6 {[%clk 0:02:41]} 5. g3 {[%clk 0:02:41]}  h5 {[%clk 0:02:39]} 6. h4 {[%clk 0:02:38]}  Bc5 {[%clk 0:02:39]} 7. Nc3 {[%clk 0:02:34]}  Qe7 {[%clk 0:02:36]} 8. d4 {[%clk 0:02:27]}  exd3 {[%clk 0:02:32]} 9. Qxd3 {[%clk 0:02:26]}  Ne5 {[%clk 0:02:32]} 10. Qf5 {[%clk 0:02:18]}  d5 {[%clk 0:02:31]} 11. Qf4 {[%clk 0:02:17]}  Nd3+ {[%clk 0:02:30]} 0-1


[Site "https://www.chess.com"]

[Event "Late Titled Tuesday Blitz February 8 2022"]
[White "Chyngyz, Sultai"]
[Black "Baches Garcia, Guillermo"]
[WhiteFideId "13803158"]
[BlackFideId "2209764"]
[WhiteElo "1339"]
[BlackElo "2448"]
[Result "0-1"]
[Round "02"]
[TimeControl "180+1"]
[Date "2022.02.09"]
[WhiteClock "0:00:39"]
[BlackClock "0:00:41"]

1. e4 {[%clk 0:02:57]}  c5 {[%clk 0:02:59]} 2. Nf3 {[%clk 0:02:55]}  d6 {[%clk 0:03:00]} 3. d4 {[%clk 0:02:54]}  cxd4 {[%clk 0:03:01]} 4. Nxd4 {[%clk 0:02:55]}  Nf6 {[%clk 0:03:02]} 5. Nc3 {[%clk 0:02:54]}  Nc6 {[%clk 0:03:02]} 6. Be2 {[%clk 0:02:40]}  e5 {[%clk 0:03:02]} 7. Ndb5 {[%clk 0:02:32]}  a6 {[%clk 0:02:58]} 8. Na3 {[%clk 0:02:25]}  Be6 {[%clk 0:02:44]} 9. O-O {[%clk 0:02:19]}  b5 {[%clk 0:02:23]} 10. Nab1 {[%clk 0:02:06]}  Be7 {[%clk 0:02:16]} 11. Be3 {[%clk 0:02:04]}  O-O {[%clk 0:02:15]} 12. f3 {[%clk 0:02:02]}  d5 {[%clk 0:02:09]} 13. exd5 {[%clk 0:02:00]}  Nxd5 {[%clk 0:02:10]} 14. Nxd5 {[%clk 0:02:00]}  Qxd5 {[%clk 0:02:10]} 15. Qxd5 {[%clk 0:01:58]}  Bxd5 {[%clk 0:02:10]} 16. Nc3 {[%clk 0:01:59]}  Be6 {[%clk 0:02:08]} 17. Rad1 {[%clk 0:01:56]}  Nd4 {[%clk 0:01:59]} 18. Bd3 {[%clk 0:01:52]}  Rac8 {[%clk 0:01:49]} 19. Bxd4 {[%clk 0:01:44]}  exd4 {[%clk 0:01:49]} 20. Ne4 {[%clk 0:01:45]}  Rfd8 {[%clk 0:01:38]} 21. b3 {[%clk 0:01:29]}  f5 {[%clk 0:01:35]} 22. Ng3 {[%clk 0:01:26]}  g6 {[%clk 0:01:35]} 23. Rfe1 {[%clk 0:01:24]}  Kf7 {[%clk 0:01:35]} 24. Ne2 {[%clk 0:01:21]}  Bg5 {[%clk 0:01:22]} 25. g3 {[%clk 0:01:13]}  Be3+ {[%clk 0:01:21]} 26. Kg2 {[%clk 0:01:13]}  Bd5 {[%clk 0:01:18]} 27. Ng1 {[%clk 0:01:13]}  Kf6 {[%clk 0:01:12]} 28. Nh3 {[%clk 0:01:13]}  g5 {[%clk 0:01:08]} 29. Ng1 {[%clk 0:01:07]}  g4 {[%clk 0:01:06]} 30. Rf1 {[%clk 0:01:07]}  Re8 {[%clk 0:00:55]} 31. h3 {[%clk 0:00:49]}  h5 {[%clk 0:00:55]} 32. hxg4 {[%clk 0:00:48]}  hxg4 {[%clk 0:00:55]} 33. Be2 {[%clk 0:00:42]}  Bxg1 {[%clk 0:00:51]} 34. Kxg1 {[%clk 0:00:43]}  Rxe2 {[%clk 0:00:50]} 35. Rxd4 {[%clk 0:00:44]}  Rcxc2 {[%clk 0:00:46]} 36. Rfd1 {[%clk 0:00:44]}  Bxf3 {[%clk 0:00:42]} 37. Rd6+ {[%clk 0:00:43]}  Kg5 {[%clk 0:00:42]} 38. Re1 {[%clk 0:00:39]}  Rxe1# {[%clk 0:00:41]} 0-1


[Site "https://www.chess.com"]